bitfinex/quotes_BTCUSD_20250108
["timestamp","ask_amount","ask_price","bid_price","bid_amount"]
[1736295722333,0.205932,97119.0,97114.0,0.03175624]
[1736295722538,0.00103245,97118.0,97115.0,0.03175624]
[1736295722743,0.00103245,97118.0,97116.0,0.03175624]
[1736295722992,0.00103245,97118.0,97117.0,0.03175624]
[1736295723191,0.00103245,97118.0,97117.0,0.03438316]
[1736295723911,0.205932,97119.0,97117.0,0.03438316]
[1736295724129,0.205932,97119.0,97118.0,0.03175624]
[1736295724549,0.52316085,97119.0,97118.0,0.03438275]
[1736295724782,0.54456771,97119.0,97118.0,0.03438275]
[1736295724983,0.49937327,97119.0,97118.0,0.00262651]
[1736295725183,0.378935,97118.0,97115.0,0.13721677]
[1736295725429,0.378935,97118.0,97109.0,0.09192752]
[1736295725430,0.173,97111.0,97109.0,0.09192752]
[1736295725631,0.32901886,97110.0,97109.0,0.09192752]
[1736295725830,0.15,97111.0,97109.0,0.09192752]
[1736295726246,0.15,97111.0,97103.0,0.18346496]
[1736295726247,0.355964,97104.0,97103.0,0.00050926]
[1736295727734,0.355964,97104.0,97103.0,0.00150926]
[1736295727934,0.355964,97104.0,97103.0,0.00050926]
[1736295728853,0.356964,97104.0,97103.0,0.00050926]
[1736295729640,0.57143361,97104.0,97103.0,0.00050926]
[1736295729844,0.67143361,97104.0,97103.0,0.00050926]
[1736295730071,0.70789423,97104.0,97103.0,0.00050926]
[1736295730506,0.206005,97085.0,97084.0,0.09192752]
[1736295730664,0.261485,97085.0,97084.0,0.09208018]
[1736295731112,0.411485,97085.0,97084.0,0.09208018]
[1736295731288,0.53351941,97085.0,97084.0,0.09208018]
[1736295731728,0.53351941,97085.0,97084.0,0.09308018]
[1736295731974,0.53351941,97085.0,97084.0,0.00115266]
[1736295732182,0.63351941,97085.0,97084.0,0.00115266]
[1736295732402,0.63351941,97085.0,97084.0,0.00015266]
[1736295732604,0.71141941,97085.0,97084.0,6.6e-07]
[1736295733136,0.81141941,97085.0,97084.0,6.6e-07]
[1736295733902,0.206039,97069.0,97068.0,0.0001708]
[1736295734018,0.356039,97069.0,97068.0,0.00032349]
[1736295735086,0.356039,97069.0,97068.0,0.00132349]
[1736295735666,0.45507341,97069.0,97068.0,0.00132349]
[1736295735863,0.74576353,97069.0,97068.0,4.9e-07]
[1736295736340,0.87723753,97069.0,97068.0,4.9e-07]
[1736295736518,0.78654741,97069.0,97068.0,4.9e-07]
[1736295736929,0.78654741,97069.0,97031.0,0.17142752]
[1736295736930,0.1,97061.0,97031.0,0.17142752]
[1736295737130,0.206111,97035.0,97034.0,1.5]
[1736295738103,0.206111,97035.0,97034.0,1.50270671]
[1736295738305,0.15,97040.0,97034.0,1.60174112]
[1736295739002,0.15,97040.0,97034.0,0.10174112]
[1736295739767,0.206078,97051.0,97039.0,1.5]
[1736295739768,0.15,97045.0,97039.0,1.5]
[1736295739972,0.206086,97047.0,97040.0,0.09903441]
[1736295740206,0.15,97046.0,97040.0,0.10174374]
[1736295740401,0.206089,97045.0,97040.0,0.10174374]
[1736295740561,0.206089,97045.0,97044.0,1.5]
[1736295741163,0.206089,97045.0,97044.0,1.50270933]
[1736295742284,0.206089,97045.0,97044.0,1.50370933]
[1736295742917,0.206089,97045.0,97044.0,1.50270933]
[1736295743250,0.206089,97045.0,97044.0,1.50370933]
[1736295744697,0.206089,97045.0,97044.0,1.50270933]
[1736295745075,0.206089,97045.0,97044.0,1.50370933]
[1736295745274,0.206089,97045.0,97044.0,1.50270933]
[1736295745476,0.206089,97045.0,97044.0,0.00370933]
[1736295745728,0.206089,97045.0,97044.0,0.001]
[1736295746459,0.206089,97045.0,97044.0,0.00372612]
[1736295746664,0.206089,97045.0,97044.0,0.0011708]
[1736295747635,0.206089,97045.0,97044.0,0.0001708]
[1736295748066,0.206089,97045.0,97044.0,0.0011708]
[1736295748666,0.206089,97045.0,97044.0,0.00389692]
[1736295750719,0.206089,97045.0,97044.0,0.00289692]
[1736295751095,0.206089,97045.0,97044.0,0.00389692]
[1736295753750,0.206089,97045.0,97044.0,0.00289692]
[1736295753950,0.45512341,97045.0,97044.0,0.00289692]
[1736295754313,0.356117,97032.0,97031.0,0.00045244]
[1736295754495,0.47815141,97032.0,97031.0,0.00045244]
[1736295754636,0.51451989,97032.0,97031.0,0.00045244]
[1736295755048,0.53197668,97032.0,97031.0,0.00045244]
[1736295755255,0.54690368,97032.0,97031.0,0.00045244]
[1736295755877,0.54690368,97032.0,97031.0,0.00145244]
[1736295756909,0.69210368,97032.0,97031.0,4.4e-07]
[1736295757818,0.356132,97025.0,96997.0,0.0827]
[1736295758033,0.47816641,97025.0,97024.0,0.00068049]
[1736295758323,0.54691868,97025.0,97024.0,0.00068049]
[1736295759093,0.434612,97025.0,97024.0,0.00068049]
[1736295759439,0.356132,97025.0,97024.0,0.00068049]
[1736295759937,0.37907749,97025.0,97024.0,0.00068049]
[1736295760171,0.37907749,97025.0,97024.0,0.0032644]
[1736295760358,0.37907749,97025.0,97024.0,0.00068049]
[1736295760491,0.41545477,97025.0,97024.0,0.0032644]
[1736295760734,0.41545477,97025.0,97024.0,0.00068049]
[1736295762561,0.206117,97032.0,97025.0,0.0817]
[1736295762910,0.206117,97033.0,97026.0,0.09903441]
[1736295763088,0.206117,97032.0,97027.0,1.5]
[1736295763314,0.206117,97032.0,97028.0,0.0320288]
[1736295763471,0.206125,97029.0,97027.0,1.5]
[1736295763679,0.412238,97031.0,97028.0,0.00258391]
[1736295764004,0.15,97027.0,97024.0,0.00068049]
[1736295764213,0.206132,97025.0,97024.0,0.00068049]
[1736295764730,0.206128,97027.0,97024.0,0.00068049]
[1736295765680,0.206132,97025.0,97024.0,0.00068049]
[1736295766780,0.229132,97025.0,97024.0,0.00068049]
[1736295769591,0.206132,97025.0,97024.0,0.00068049]
[1736295770877,0.206128,97027.0,97024.0,0.00068049]
[1736295771053,0.2062134,97027.0,97024.0,0.00068049]
[1736295772046,0.4123424,97027.0,97024.0,0.00068049]
[1736295773053,0.4123424,97027.0,97025.0,0.01062288]
[1736295773694,0.4123424,97027.0,97026.0,0.01062288]
[1736295774024,0.4123424,97027.0,97024.0,0.00068049]
[1736295774662,0.4123424,97027.0,97025.0,0.03207865]
[1736295774813,0.4123424,97027.0,97026.0,0.03207865]
[1736295775461,0.4123424,97027.0,97026.0,0.04270433]
[1736295776070,0.4123424,97027.0,97026.0,0.04530735]
[1736295776670,0.4123424,97027.0,97026.0,0.03468167]
[1736295777263,0.4123424,97027.0,97026.0,1.53468167]
[1736295778485,0.4123424,97027.0,97026.0,0.00260302]
[1736295778662,0.4123424,97027.0,97026.0,0.0132336]
[1736295778865,0.4123424,97027.0,97026.0,0.01063058]
[1736295780630,0.2062134,97027.0,97026.0,0.01063058]
[1736295781040,0.2062134,97027.0,97026.0,0.04272938]
[1736295781249,0.2062134,97027.0,97026.0,0.01063058]
[1736295781685,0.2062134,97027.0,97026.0,0.0132336]
[1736295781896,0.2062134,97027.0,97026.0,0.01063058]
[1736295782488,0.4123424,97027.0,97026.0,1.5]
[1736295782840,0.4123424,97027.0,97026.0,1.50260302]
[1736295784661,0.2062134,97027.0,97026.0,1.50260302]
[1736295785072,8.54e-05,97027.0,97026.0,1.68263743]
[1736295785285,8.54e-05,97027.0,97026.0,1.88876743]
[1736295785437,0.206123,97029.0,97027.0,0.0003746]
[1736295785639,0.206123,97029.0,97028.0,0.01064926]
[1736295785861,0.206123,97029.0,97028.0,0.01327585]
[1736295786709,0.206123,97029.0,97028.0,0.00262659]
[1736295786880,0.206123,97029.0,97027.0,0.0003746]
[1736295787081,0.206123,97029.0,97028.0,0.00262659]
[1736295787324,0.206123,97029.0,97027.0,0.0003746]
[1736295787529,0.206123,97029.0,97028.0,0.00262659]
[1736295787736,0.206123,97029.0,97027.0,0.0003746]
[1736295787931,0.206123,97029.0,97028.0,0.00262659]
[1736295788133,0.206123,97029.0,97027.0,0.0003746]
[1736295788334,0.206123,97029.0,97028.0,0.00262659]
[1736295788599,0.206123,97029.0,97027.0,0.0003746]
[1736295788771,0.206123,97029.0,97028.0,0.00262659]
[1736295789178,0.206123,97029.0,97027.0,0.0003746]
[1736295789353,0.206123,97029.0,97028.0,0.00262659]
[1736295789560,0.206123,97029.0,97028.0,0.01065457]
[1736295789733,0.206123,97029.0,97028.0,0.01328116]
[1736295790541,0.206116,97033.0,97028.0,0.01328116]
[1736295790769,0.206111,97036.0,97029.0,0.09903441]
[1736295791021,0.206099,97041.0,97030.0,0.206121]
[1736295791194,0.206099,97041.0,97031.0,0.09903441]
[1736295791381,0.206106,97038.0,97031.0,0.09903441]
[1736295791589,0.206106,97038.0,97032.0,0.02770443]
[1736295791815,0.206106,97038.0,97033.0,0.09903441]
[1736295792240,0.206106,97038.0,97034.0,0.03484263]
[1736295792463,0.206106,97038.0,97034.0,0.03746561]
[1736295792781,0.2061274,97068.0,97035.0,0.13387704]
[1736295792962,0.05548,97063.0,97036.0,1.830609]
[1736295793137,0.206084,97048.0,97037.0,0.09903441]
[1736295793365,0.206092,97044.0,97038.0,0.00261466]
[1736295793567,0.206092,97044.0,97039.0,0.09903441]
[1736295793769,0.206092,97044.0,97040.0,1.5]
[1736295794091,0.206092,97044.0,97040.0,1.61230317]
[1736295794245,0.206084,97048.0,97040.0,1.61230317]
[1736295794449,0.206084,97048.0,97041.0,0.01065457]
[1736295794859,0.206077,97051.0,97042.0,0.3867446]
[1736295795061,0.206077,97051.0,97042.0,0.19130317]
[1736295795691,0.20607,97055.0,97043.0,0.21674857]
[1736295795900,0.173,97059.0,97044.0,0.09903441]
[1736295796062,0.206077,97051.0,97044.0,0.09903441]
[1736295796265,0.206085,97048.0,97045.0,0.00261419]
[1736295796465,0.206085,97048.0,97045.0,0.1016486]
[1736295796696,0.206085,97048.0,97045.0,0.11230317]
[1736295796895,0.206087,97046.0,97045.0,0.01326876]
[1736295797069,0.229087,97046.0,97045.0,0.01326876]
[1736295797279,0.206098,97041.0,97040.0,0.09192752]
[1736295797452,0.206098,97041.0,97040.0,0.09451548]
[1736295797657,0.206098,97041.0,97040.0,0.00258796]
[1736295797923,0.206098,97041.0,97035.0,0.09192752]
[1736295798082,0.206109,97036.0,97035.0,0.09192752]
[1736295798510,0.206109,97036.0,97035.0,1.60257356]
[1736295798716,0.206109,97036.0,97035.0,1.51064604]
[1736295799136,0.2061,97040.0,97035.0,1.5]
[1736295799672,0.206108,97037.0,97035.0,1.5]
[1736295800794,0.2061,97040.0,97035.0,1.5]
[1736295801232,0.206109,97036.0,97035.0,1.5]
[1736295802607,0.206105,97038.0,97035.0,1.51064557]
[1736295803259,0.41221,97038.0,97035.0,1.5]
[1736295804128,0.37927952,97038.0,97035.0,1.5]
[1736295804330,0.17317452,97038.0,97035.0,1.5]
[1736295808571,0.37927952,97038.0,97035.0,1.5]
[1736295810424,0.37927952,97038.0,97027.0,0.17537292]
[1736295810425,0.206122,97030.0,97027.0,0.0834454]
[1736295811101,0.206123,97029.0,97028.0,1.5]
[1736295812374,0.206123,97029.0,97028.0,1.5025978]
[1736295814367,0.20599896,97029.0,97028.0,1.5025978]
[1736295814909,0.20599896,97029.0,97028.0,1.51325124]
[1736295816066,0.206117,97032.0,97028.0,1.51325124]
[1736295816704,0.206117,97032.0,97029.0,0.01065344]
[1736295817089,0.412235,97032.0,97029.0,0.01065344]
[1736295817290,0.412235,97032.0,97030.0,1.50260211]
[1736295817593,0.412235,97032.0,97030.0,1.51325555]
[1736295818030,0.412235,97032.0,97030.0,1.50260211]
[1736295820147,0.412235,97032.0,97030.0,0.00260211]
[1736295820530,0.206126,97028.0,97027.0,0.0834454]
[1736295821202,0.206126,97028.0,97027.0,1.5834454]
[1736295825233,0.425326,97028.0,97027.0,0.0005454]
[1736295829528,0.425326,97028.0,97024.0,6.9e-07]
[1736295829529,0.35,97025.0,97024.0,6.9e-07]
[1736295829740,0.65481441,97025.0,97024.0,6.9e-07]
[1736295831926,0.66018913,97025.0,97024.0,6.9e-07]
[1736295832756,0.68850866,97025.0,97024.0,6.9e-07]
[1736295833694,0.68850866,97025.0,97024.0,4.9e-07]
[1736295834706,0.68950866,97025.0,97024.0,4.9e-07]
[1736295835565,0.66118913,97025.0,97024.0,4.9e-07]
[1736295838472,0.66018913,97025.0,97024.0,4.9e-07]
[1736295838927,0.66118913,97025.0,97024.0,4.9e-07]
[1736295840139,0.66018913,97025.0,97024.0,4.9e-07]
[1736295840432,0.66218913,97025.0,97024.0,4.9e-07]
[1736295840645,0.66118913,97025.0,97024.0,4.9e-07]
[1736295840958,0.74066225,97025.0,97024.0,4.9e-07]
[1736295842232,0.73966225,97025.0,97024.0,4.9e-07]
[1736295843652,0.74066225,97025.0,97024.0,4.9e-07]
[1736295845136,0.73966225,97025.0,97024.0,4.9e-07]
[1736295845302,0.74074765,97025.0,97024.0,4.9e-07]
[1736295846690,0.73974765,97025.0,97024.0,4.9e-07]
[1736295846844,0.74074765,97025.0,97024.0,4.9e-07]
[1736295853196,0.73974765,97025.0,97024.0,4.9e-07]
[1736295853602,0.74174765,97025.0,97024.0,4.9e-07]
[1736295854019,0.74474765,97025.0,97024.0,4.9e-07]
[1736295854836,0.74574765,97025.0,97024.0,4.9e-07]
[1736295855262,0.74474765,97025.0,97024.0,4.9e-07]
[1736295856599,0.79564859,97025.0,97024.0,4.9e-07]
[1736295856805,0.79664859,97025.0,97024.0,4.9e-07]
[1736295857417,0.79764859,97025.0,97024.0,4.9e-07]
[1736295857723,0.79564859,97025.0,97024.0,4.9e-07]
[1736295857924,0.80064859,97025.0,97024.0,4.9e-07]
[1736295858350,0.356213,96987.0,96986.0,0.0001706]
[1736295858566,0.434693,96987.0,96986.0,0.0001706]
[1736295859716,0.434693,96987.0,96986.0,0.00022152]
[1736295861496,0.434693,96987.0,96986.0,0.07542152]
[1736295863808,0.379213,96987.0,96986.0,0.07542152]
[1736295864005,0.434653,96987.0,96986.0,0.07542152]
[1736295867488,0.379213,96987.0,96986.0,0.07542152]
[1736295875946,0.379213,96987.0,96986.0,0.07798969]
[1736295879137,0.379213,96987.0,96986.0,0.07542152]
[1736295880348,0.379213,96987.0,96986.0,0.07798718]
[1736295884499,0.379213,96987.0,96986.0,0.08866495]
[1736295885153,0.206213,96987.0,96986.0,0.08866495]
[1736295885311,8.55e-05,96999.0,96989.0,0.0791]
[1736295885525,8.55e-05,96999.0,96995.0,0.1246]
[1736295885873,8.55e-05,96999.0,96997.0,0.0791]
[1736295886008,8.55e-05,96999.0,96998.0,1.63122936]
[1736295886216,8.55e-05,96999.0,96998.0,1.87866936]
[1736295886642,8.55e-05,96999.0,96998.0,1.885812]
[1736295887242,8.55e-05,96999.0,96998.0,1.74859523]
[1736295887453,8.55e-05,96999.0,96998.0,2.07371586]
[1736295888358,8.55e-05,96999.0,96998.0,2.04152091]
[1736295888597,8.55e-05,96999.0,96998.0,2.07366626]
[1736295889460,8.55e-05,96999.0,96998.0,2.08752091]
[1736295889664,8.54e-05,97025.0,96999.0,0.1279]
[1736295889864,8.54e-05,97025.0,96998.0,1.99375464]
[1736295889865,0.206136,97023.0,97013.0,0.0819]
[1736295890105,8.54e-05,97025.0,97015.0,0.0819]
[1736295890281,8.54e-05,97025.0,97021.0,0.0789]
[1736295890478,8.54e-05,97025.0,97016.0,1.60006506]
[1736295890479,8.54e-05,97025.0,97022.0,0.09903441]
[1736295890658,8.54e-05,97025.0,97023.0,0.0789]
[1736295891021,8.54e-05,97025.0,97024.0,0.17793441]
[1736295891232,0.22847344,97062.0,97024.0,1.60006496]
[1736295891428,0.22847344,97062.0,97051.0,0.1789]
[1736295891639,0.18277875,97073.0,97061.0,0.206054]
[1736295891770,0.206044,97067.0,97063.0,0.0789]
[1736295891970,0.00059375,97068.0,97064.0,1.5]
[1736295892202,0.206045,97066.0,97064.0,1.50249709]
[1736295892405,0.206045,97066.0,97064.0,0.00249709]
[1736295892777,0.229049,97064.0,97062.0,0.13885857]
[1736295892960,0.173,97063.0,97062.0,0.13885857]
[1736295893172,0.023,97063.0,97062.0,0.13885857]
[1736295893891,0.206074,97053.0,97050.0,0.0757]
[1736295895017,0.206066,97057.0,97050.0,0.0757]
[1736295895018,0.15,97056.0,97050.0,0.0757]
[1736295896374,0.206044,97067.0,97050.0,0.0757]
[1736295896375,0.206034,97072.0,97051.0,0.09903441]
[1736295896586,0.20663575,97068.0,97051.0,0.09903441]
[1736295897399,0.023,97067.0,97056.0,0.206065]
[1736295897879,0.00059375,97068.0,97057.0,0.09903441]
[1736295898662,0.00059375,97068.0,97058.0,1.5]
[1736295898863,0.206043,97067.0,97059.0,0.09903441]
[1736295899666,0.00059375,97068.0,97061.0,0.0801]
[1736295899879,8.54e-05,97096.0,97065.0,0.0801]
[1736295900103,8.54e-05,97096.0,97068.0,0.09903441]
[1736295900299,8.54e-05,97096.0,97074.0,0.1]
[1736295900499,8.54e-05,97096.0,97095.0,0.286083]
[1736295900730,8.54e-05,97096.0,97095.0,0.0801]
[1736295901253,8.54e-05,97096.0,97095.0,1.67913441]
[1736295901445,8.54e-05,97125.0,97117.0,0.205937]
[1736295901604,8.54e-05,97125.0,97117.0,0.38477141]
[1736295902448,8.54e-05,97125.0,97117.0,0.38718138]
[1736295902657,8.54e-05,97125.0,97122.0,0.305926]
[1736295902858,8.54e-05,97125.0,97122.0,0.40496041]
[1736295903211,8.54e-05,97125.0,97122.0,0.30737038]
[1736295903994,0.205436,97148.0,97122.0,0.43996204]
[1736295904274,0.205894,97138.0,97123.0,0.09903441]
[1736295904523,0.205894,97138.0,97123.0,0.30495741]
[1736295904723,0.205886,97142.0,97125.0,0.20592]
[1736295904872,0.15,97145.0,97126.0,0.10006387]
[1736295905074,0.15,97145.0,97126.0,0.10238788]
[1736295905324,0.00015259,97148.0,97130.0,0.12251776]
[1736295905532,0.00015259,97148.0,97146.0,0.205874]
[1736295905751,0.00015259,97148.0,97146.0,0.09903441]
[1736295906126,0.00015259,97148.0,97147.0,0.00232401]
[1736295906858,0.00015259,97148.0,97147.0,0.10135842]
[1736295908474,0.15,97154.0,97147.0,1.60135842]
[1736295908883,0.206248,97159.0,97148.0,0.09903441]
[1736295908884,0.0004,97159.0,97148.0,0.09903441]
[1736295909062,0.0004,97159.0,97150.0,0.0832]
[1736295909258,0.0004,97159.0,97155.0,0.205856]
[1736295909623,0.0004,97159.0,97156.0,0.10006356]
[1736295909926,0.023,97176.0,97157.0,1.5]
[1736295910046,0.205826,97170.0,97158.0,0.09903441]
[1736295910446,0.205826,97170.0,97159.0,0.00231676]
[1736295910692,0.023,97172.0,97160.0,0.09903441]
[1736295910889,0.205818,97173.0,97161.0,0.205843]
[1736295911089,0.0005945,97183.0,97162.0,0.10006351]
[1736295911293,0.205803,97180.0,97162.0,0.10006351]
[1736295911622,0.205801,97181.0,97163.0,0.205839]
[1736295911766,0.205801,97181.0,97164.0,0.10006344]
[1736295912032,0.205812,97176.0,97164.0,0.10006344]
[1736295912218,0.205812,97176.0,97165.0,0.00230419]
[1736295912416,0.205812,97176.0,97166.0,0.09903441]
[1736295913039,0.205812,97176.0,97167.0,0.00230419]
[1736295913220,0.205812,97176.0,97168.0,0.09903441]
[1736295914051,0.205812,97176.0,97169.0,0.00230419]
[1736295914263,0.205799,97182.0,97170.0,0.30485841]
[1736295914469,0.205808,97178.0,97170.0,0.09903441]
[1736295914690,0.023,97189.0,97170.0,0.09903441]
[1736295914899,0.205808,97178.0,97171.0,0.00230419]
[1736295915107,0.205808,97178.0,97172.0,0.09903441]
[1736295915542,0.205808,97178.0,97173.0,0.00230419]
[1736295915764,0.205808,97178.0,97174.0,0.09903441]
[1736295915972,0.205801,97181.0,97173.0,0.00230419]
[1736295915973,0.023,97174.0,97173.0,0.00230419]
[1736295916176,0.205828,97169.0,97150.0,0.08422914]
[1736295916383,0.205811,97177.0,97152.0,0.205862]
[1736295916558,0.205811,97177.0,97162.0,0.205839]
[1736295916787,0.205805,97179.0,97163.0,0.10006349]
[1736295916986,0.205805,97179.0,97167.0,0.20583]
[1736295917202,0.205805,97179.0,97168.0,0.09903441]
[1736295917415,0.205814,97175.0,97168.0,0.09903441]
[1736295917589,0.2058,97182.0,97169.0,0.00227177]
[1736295917796,0.2058,97182.0,97170.0,0.09903441]
[1736295918199,0.205816,97174.0,97171.0,0.00227177]
[1736295918375,0.205816,97174.0,97172.0,0.09903441]
[1736295918778,0.205816,97174.0,97173.0,0.00227177]
[1736295919391,0.411633,97174.0,97157.0,0.00102912]
[1736295919596,0.205824,97170.0,97158.0,0.09903441]
[1736295919805,0.205824,97170.0,97158.0,0.10130721]
[1736295920003,0.205816,97174.0,97158.0,0.10130721]
[1736295920429,0.205818,97173.0,97158.0,0.10130721]
[1736295920661,0.411637,97173.0,97158.0,0.10130721]
[1736295920851,0.205827,97169.0,97158.0,0.10130721]
[1736295922297,0.05528,97186.0,97159.0,0.00102913]
[1736295922505,0.205803,97180.0,97160.0,0.09903441]
[1736295922755,0.205803,97180.0,97161.0,0.00102903]
[1736295922950,0.205803,97180.0,97162.0,0.30590444]
[1736295923157,0.05528,97186.0,97162.0,0.09903441]
[1736295923360,0.023,97185.0,97163.0,0.0022735]
[1736295923569,0.205838,97164.0,97141.0,0.0782]
[1736295923766,0.205857,97155.0,97142.0,0.09903441]
[1736295924099,0.411714,97155.0,97142.0,1.60130664]
[1736295924414,0.205858,97154.0,97142.0,1.60130664]
[1736295924744,0.205858,97154.0,97142.0,1.60181584]
[1736295925195,0.205858,97154.0,97143.0,0.01055216]
[1736295925365,0.205858,97154.0,97144.0,0.09903441]
[1736295925577,0.20585,97158.0,97144.0,0.09903441]
[1736295925766,0.20585,97158.0,97145.0,1.51282439]
[1736295925985,0.20585,97158.0,97146.0,0.09903441]
[1736295926387,0.205859,97154.0,97146.0,0.09903441]
[1736295926630,0.205859,97154.0,97147.0,1.50227223]
[1736295926857,0.205859,97154.0,97147.0,1.60130664]
[1736295927145,0.205859,97154.0,97147.0,1.61188622]
[1736295927344,0.205859,97154.0,97148.0,0.02750794]
[1736295927611,0.205859,97154.0,97149.0,0.03175265]
[1736295927764,0.205859,97154.0,97150.0,0.03175265]
[1736295927972,0.205841,97163.0,97151.0,0.13078706]
[1736295928194,8.54e-05,97194.0,97157.0,0.0782]
[1736295928388,0.05528,97193.0,97163.0,0.205838]
[1736295928611,0.205809,97178.0,97164.0,0.13181612]
[1736295928832,0.205809,97178.0,97165.0,1.73758765]
[1736295929187,0.205809,97178.0,97166.0,0.13078706]
[1736295929413,8.52e-05,97177.0,97167.0,0.03175265]
[1736295929596,8.52e-05,97177.0,97168.0,0.13078706]
[1736295929829,0.205812,97176.0,97169.0,1.53175265]
[1736295930032,8.52e-05,97177.0,97170.0,0.13078706]
[1736295930216,8.52e-05,97177.0,97171.0,0.03175265]
[1736295930367,8.52e-05,97177.0,97172.0,0.03175265]
[1736295930581,0.2058962,97177.0,97173.0,1.53175265]
[1736295930753,0.2058962,97177.0,97174.0,0.03175265]
[1736295930953,0.2058962,97177.0,97174.0,0.00227768]
[1736295931358,8.52e-05,97177.0,97175.0,0.05948074]
[1736295931560,8.52e-05,97177.0,97176.0,0.03187456]
[1736295931779,8.52e-05,97177.0,97176.0,0.03415099]
[1736295931995,8.52e-05,97177.0,97176.0,0.06175717]
[1736295933127,0.05528,97191.0,97176.0,0.06175717]
[1736295933354,0.00015267,97183.0,97177.0,0.03187456]
[1736295933573,0.00015267,97183.0,97178.0,0.03187456]
[1736295933741,0.00015267,97183.0,97179.0,0.03187456]
[1736295933941,0.205805,97180.0,97179.0,0.0128549]
[1736295934176,0.205805,97180.0,97179.0,0.0448247]
[1736295934378,0.205805,97180.0,97179.0,0.04254938]
[1736295934573,0.00015267,97183.0,97179.0,0.03424512]
[1736295934779,0.00015267,97183.0,97180.0,0.0319698]
[1736295934979,0.00015267,97183.0,97181.0,0.0319698]
[1736295935188,0.00015267,97183.0,97182.0,0.0319698]
[1736295936398,0.00015267,97183.0,97182.0,0.04262937]
[1736295939737,0.00015267,97183.0,97182.0,0.04489211]
[1736295941061,0.205776,97193.0,97182.0,0.04489211]
[1736295941279,0.205776,97193.0,97183.0,0.0319698]
[1736295941454,0.205784,97190.0,97184.0,0.0319698]
[1736295941654,0.205784,97190.0,97185.0,0.0319698]
[1736295941974,0.205784,97190.0,97186.0,0.0319698]
[1736295942183,0.205784,97190.0,97187.0,0.0319698]
[1736295942425,0.40616828,97190.0,97188.0,0.0319698]
[1736295942657,0.205776,97193.0,97189.0,0.0319698]
[1736295942966,0.205776,97193.0,97190.0,0.0319698]
[1736295943173,0.205776,97193.0,97191.0,0.0319698]
[1736295943388,0.205776,97193.0,97192.0,0.0319698]
[1736295943991,0.205776,97193.0,97192.0,0.04262963]
[1736295945526,0.205776,97193.0,97192.0,0.04489237]
[1736295946111,0.206776,97193.0,97192.0,0.04489237]
[1736295946776,0.206776,97193.0,97192.0,0.06194239]
[1736295947152,0.206776,97193.0,97192.0,0.40251332]
[1736295947892,0.206776,97193.0,97192.0,0.3854633]
[1736295948092,0.001,97193.0,97192.0,0.04489237]
[1736295948298,0.206776,97193.0,97192.0,0.03423254]
[1736295949910,0.206776,97193.0,97192.0,0.12656222]
[1736295951447,0.206776,97193.0,97192.0,0.00226274]
[1736295951828,0.412552,97193.0,97190.0,0.09232968]
[1736295952030,0.412552,97193.0,97192.0,0.00226274]
[1736295952604,0.412552,97193.0,97190.0,0.09232968]
[1736295952763,0.411552,97193.0,97192.0,0.00226274]
[1736295952963,0.411552,97193.0,97187.0,0.09232968]
[1736295953166,0.205776,97193.0,97188.0,0.03209203]
[1736295953390,0.205776,97193.0,97190.0,0.0001704]
[1736295953607,0.2058612,97193.0,97190.0,0.0001704]
[1736295954003,0.2058612,97193.0,97191.0,0.00226274]
[1736295954733,0.0010852,97193.0,97191.0,0.00226274]
[1736295955767,0.0010852,97193.0,97186.0,0.09232968]
[1736295955768,0.0010852,97193.0,97186.0,0.03458406]
[1736295955937,8.52e-05,97193.0,97192.0,0.00214496]
[1736295956142,8.52e-05,97193.0,97187.0,0.09903441]
[1736295956143,0.205786,97188.0,97187.0,0.09903441]
[1736295956344,0.205778,97192.0,97187.0,0.09903441]
[1736295958911,0.205778,97192.0,97188.0,1.5]
[1736295959109,0.205778,97192.0,97189.0,0.09903441]
[1736295959720,0.205778,97192.0,97190.0,1.5]
[1736295960740,8.52e-05,97193.0,97190.0,1.5]
[1736295962954,0.20582077,97194.0,97190.0,1.5]
[1736295963336,0.20582077,97194.0,97191.0,0.00214496]
[1736295964774,0.41159477,97194.0,97191.0,0.00214496]
[1736295965409,0.20582077,97194.0,97191.0,0.00214496]
[1736295968066,0.20582077,97194.0,97192.0,0.01068663]
[1736295968473,0.20582077,97194.0,97193.0,0.00214401]
[1736295968917,0.20582077,97194.0,97190.0,1.5001704]
[1736295969091,0.20582077,97194.0,97193.0,0.00214401]
[1736295969294,0.41159577,97194.0,97190.0,1.5001704]
[1736295969496,0.41159577,97194.0,97193.0,0.00214401]
[1736295969710,0.41159577,97194.0,97190.0,1.5001704]
[1736295969906,0.41159577,97194.0,97193.0,0.00214401]
[1736295970119,0.41159577,97194.0,97191.0,0.01069086]
[1736295970512,0.41159577,97194.0,97192.0,0.00214401]
[1736295970719,0.41159577,97194.0,97192.0,1.51069086]
[1736295971122,0.41159577,97194.0,97193.0,0.00214401]
[1736295971673,0.20582077,97194.0,97193.0,0.09029086]
[1736295971850,0.20582077,97194.0,97193.0,0.09243487]
[1736295972671,0.39866208,97194.0,97193.0,0.01283487]
[1736295972871,0.35582077,97194.0,97193.0,0.01069086]
[1736295973559,0.355776,97193.0,97190.0,0.0001704]
[1736295973776,0.35578,97191.0,97190.0,0.0001704]
[1736295973989,0.43108,97191.0,97190.0,0.0001704]
[1736295974615,0.603695,97184.0,97183.0,0.01009234]
[1736295974852,0.1,97182.0,97180.0,0.13849453]
[1736295975061,0.1,97182.0,97161.0,0.01009234]
[1736295975062,0.355814,97175.0,97161.0,0.01009234]
[1736295975269,0.411054,97175.0,97161.0,0.01009234]
[1736295976110,0.411054,97175.0,97145.0,0.0808]
[1736295977154,0.4426227,97175.0,97145.0,0.0808]
[1736295977516,0.411054,97175.0,97145.0,0.0808]
[1736295978415,0.411054,97175.0,97147.0,0.00119969]
[1736295978611,0.355814,97175.0,97147.0,0.0001704]
[1736295978814,0.355814,97175.0,97166.0,0.08]
[1736295978973,4.677e-05,97194.0,97167.0,1.5]
[1736295979178,0.205811,97177.0,97167.0,1.5]
[1736295979421,0.205814,97175.0,97166.0,0.08]
[1736295979838,0.205814,97175.0,97174.0,1.5001704]
[1736295980251,0.205814,97175.0,97174.0,1.50235052]
[1736295981089,0.205814,97175.0,97174.0,0.00235052]
[1736295981381,0.205814,97175.0,97174.0,0.0001704]
[1736295982948,0.355814,97175.0,97174.0,0.0001704]
[1736295994929,0.405314,97175.0,97174.0,0.0001704]
[1736295999031,0.482114,97175.0,97174.0,0.0001704]
[1736295999262,1.43741253,97175.0,97174.0,0.0001704]
[1736295999476,1.48152702,97175.0,97174.0,4e-07]
[1736295999690,0.93122343,97175.0,97174.0,4e-07]